bitfinex/quotes_SOLUSD_20250310
["timestamp","ask_amount","ask_price","bid_price","bid_amount"]
[1741616741559,49.92386463,123.69,123.63,49.92386463]
[1741616741754,49.92386463,123.68,123.56,0.14216157]
[1741616741979,49.92386463,123.65,123.56,64.0]
[1741616742191,62.40106463,123.72,123.6,49.92386463]
[1741616742479,18.79181043,123.64,123.61,49.92386463]
[1741616742659,18.79181043,123.71,123.57,0.14216157]
[1741616742874,18.79181043,123.7,123.57,0.28432314]
[1741616743094,18.79181043,123.7,123.6,49.92386463]
[1741616743095,18.79181043,123.68,123.6,49.92386463]
[1741616743302,0.14216157,123.62,123.52,8.0958]
[1741616743477,20.0,123.61,123.52,8.0958]
[1741616743673,69.92386463,123.61,123.55,49.92386463]
[1741616743879,0.14216157,123.59,123.54,49.92386463]
[1741616744393,19.8909,123.65,123.49,64.0]
[1741616744600,18.79181043,123.59,123.54,49.92386463]
[1741616744809,0.14216157,123.58,123.47,92.3463]
[1741616744977,0.14216157,123.58,123.47,28.3463]
[1741616745309,10.0821,123.73,123.58,18.79181043]
[1741616745463,8.0821,123.73,123.57,64.0]
[1741616745664,0.14216157,123.65,123.55,18.79181043]
[1741616746001,0.14216157,123.65,123.54,113.92386463]
[1741616746002,0.14216157,123.65,123.54,49.92386463]
[1741616746181,0.14216157,123.57,123.49,64.0]
[1741616746369,38.933972,123.63,123.49,18.933972]
[1741616746565,49.92386463,123.66,123.59,49.92386463]
[1741616746794,0.14216157,123.63,123.58,49.92386463]
[1741616747076,0.14216157,123.59,123.52,24.341809]
[1741616747287,0.14216157,123.57,123.52,24.341809]
[1741616747671,192.82,123.63,123.52,24.341809]
[1741616747985,26.87581043,123.7,123.57,49.92386463]
[1741616748167,49.92386463,123.65,123.59,49.92386463]
[1741616748366,49.92386463,123.67,123.61,49.92386463]
[1741616748592,8.084,123.7,123.54,58.01776463]
[1741616748779,49.92386463,123.62,123.54,8.0939]
[1741616748979,18.79181043,123.69,123.54,8.0939]
[1741616749498,20.0,123.58,123.49,8.0978]
[1741616749794,18.64964886,123.57,123.44,28.3538]
[1741616750106,18.64964886,123.57,123.52,49.92386463]
[1741616750295,242.74386463,123.58,123.48,49.92386463]
[1741616750296,192.82,123.58,123.48,49.92386463]
[1741616750606,18.64964886,123.57,123.51,49.92386463]
[1741616750785,172.02487367,123.58,123.53,49.92386463]
[1741616750989,0.28432314,123.54,123.44,8.1011]
[1741616751289,0.28432314,123.54,123.38,2.0]
[1741616751290,20.28432314,123.54,123.39,8.1043]
[1741616751508,2.28432314,123.52,123.33,8.1083]
[1741616751817,0.28432314,123.5,123.33,8.1083]
[1741616751993,0.14216157,123.44,123.39,49.92386463]
[1741616752197,50.20818777,123.44,123.33,8.1083]
[1741616752401,50.0660262,123.41,123.35,49.92386463]
[1741616752706,0.14216157,123.37,123.31,8.1096]
[1741616753015,0.14216157,123.37,123.3,49.98686463]
[1741616753016,0.14216157,123.4,123.3,142.37276463]
[1741616753215,0.14216157,123.4,123.3,122.09706463]
[1741616753413,104.4106,123.53,123.36,49.92386463]
[1741616753583,0.28432314,123.46,123.31,0.14216157]
[1741616753791,8.0977,123.5,123.41,49.92386463]
[1741616754118,11.9338,123.53,123.46,49.92386463]
[1741616754296,49.92386463,123.52,123.41,26.75264886]
[1741616754504,49.92386463,123.52,123.42,49.92386463]
[1741616754813,0.28432314,123.52,123.41,47.01024886]
[1741616755020,192.9,123.55,123.5,49.92386463]
[1741616755195,11.9682,123.59,123.48,68.57351349]
[1741616755523,11.9682,123.59,123.54,49.92386463]
[1741616755820,0.28432314,123.54,123.42,49.92386463]
[1741616756115,50.20818777,123.58,123.52,49.92386463]
[1741616756416,0.14216157,123.56,123.51,49.92386463]
[1741616756590,0.14216157,123.56,123.46,18.64964886]
[1741616756591,0.14216157,123.54,123.42,18.79181043]
[1741616756790,0.14216157,123.53,123.48,49.92386463]
[1741616756990,0.14216157,123.53,123.47,49.92386463]
[1741616756991,0.14216157,123.52,123.47,49.92386463]
[1741616757202,0.14216157,123.49,123.44,49.92386463]
[1741616757493,2.0,123.56,123.42,8.1024]
[1741616757494,0.14216157,123.58,123.47,49.92386463]
[1741616757688,49.92386463,123.53,123.42,78.28226463]
[1741616757896,0.28432314,123.57,123.51,49.92386463]
[1741616758109,0.28432314,123.57,123.47,18.64964886]
[1741616758427,50.0660262,123.55,123.47,8.0991]
[1741616758725,0.14216157,123.53,123.46,49.92386463]
[1741616759033,0.14216157,123.53,123.42,70.17876463]
[1741616759034,49.92386463,123.49,123.43,49.92386463]
[1741616759317,49.92386463,123.48,123.42,49.92386463]
[1741616759620,49.92386463,123.47,123.41,49.92386463]
[1741616759823,0.14216157,123.49,123.41,49.92386463]
[1741616760027,49.92386463,123.46,123.4,49.92386463]
[1741616760321,20.14216157,123.44,123.39,0.063]
[1741616760611,0.14216157,123.42,123.39,0.063]
[1741616760807,49.92386463,123.4,123.27,84.2794]
[1741616760986,192.96,123.39,123.24,2.0]
[1741616761187,49.92386463,123.33,123.26,49.92386463]
[1741616761391,18.64964886,123.38,123.21,64.0]
[1741616761614,8.1012,123.44,123.3,8.1732]
[1741616761919,0.14216157,123.4,123.33,49.92386463]
[1741616762115,49.92386463,123.43,123.31,18.79181043]
[1741616762293,49.92386463,123.42,123.31,18.64964886]
[1741616762616,0.14216157,123.35,123.3,0.063]
[1741616762800,49.92386463,123.34,123.3,0.063]
[1741616763003,18.64964886,123.35,123.3,0.063]
[1741616763203,0.14216157,123.35,123.3,0.063]
[1741616763397,50.0660262,123.31,123.3,0.063]
[1741616763596,0.14216157,123.27,123.23,5.87238811]
[1741616763794,49.92386463,123.27,123.23,5.87238811]
[1741616764008,0.14216157,123.25,123.2,5.87238811]
[1741616764209,49.92386463,123.21,123.2,5.87238811]
[1741616764431,8.1142,123.24,123.13,4.73197749]
[1741616764597,8.1109,123.29,123.23,49.92386463]
[1741616764926,0.14216157,123.28,123.19,18.64964886]
[1741616765132,0.14216157,123.28,123.23,49.92386463]
[1741616765337,18.933972,123.26,123.13,4.73197749]
[1741616765628,18.933972,123.26,123.17,49.92386463]
[1741616765629,0.14216157,123.26,123.17,49.92386463]
[1741616765839,0.14216157,123.23,123.14,49.92386463]
[1741616766005,49.92386463,123.19,123.13,49.92386463]
[1741616766337,20.0,123.24,123.17,49.92386463]
[1741616766515,49.92386463,123.24,123.17,49.92386463]
[1741616766705,49.92386463,123.23,123.17,49.92386463]
[1741616766906,20.0,123.21,123.1,8.1234]
[1741616767114,20.0,123.19,123.07,8.1254]
[1741616767321,49.92386463,123.15,123.07,8.1254]
[1741616767537,18.64964886,123.17,123.02,89.683227]
[1741616767845,49.92386463,123.1,123.04,49.92386463]
[1741616768138,18.64964886,123.15,123.06,49.92386463]
[1741616768313,18.79181043,123.13,123.02,9.3718]
[1741616768510,49.92386463,123.09,123.03,49.92386463]
[1741616768714,49.92386463,123.09,123.02,9.3718]
[1741616768920,49.92386463,123.1,123.04,49.92386463]
[1741616769125,2.0,123.19,123.09,49.92386463]
[1741616769126,38.94434886,123.19,123.09,49.92386463]
[1741616769442,62.37346463,123.2,123.14,49.92386463]
[1741616769651,0.14216157,123.19,123.07,64.0]
[1741616769811,0.14216157,123.19,123.06,20.0]
[1741616770017,20.0,123.16,123.04,64.0]
[1741616770229,18.79181043,123.16,123.03,18.79181043]
[1741616770435,18.79181043,123.16,123.03,0.14216157]
[1741616770632,20.0,123.11,123.03,0.063]
[1741616770834,49.92386463,123.07,123.03,0.063]
[1741616771010,49.92386463,123.09,123.03,49.98686463]
[1741616771212,20.0,123.11,123.03,49.98686463]
[1741616771564,49.92386463,123.05,123.03,0.063]
[1741616771711,49.92386463,123.04,123.03,0.063]
[1741616772342,18.79181043,123.05,123.02,1.2433]
[1741616772518,11.9013,123.07,123.02,1.2433]
[1741616772716,0.14216157,123.06,123.02,1.2433]
[1741616772947,49.92386463,123.03,123.02,1.2433]
[1741616773271,50.0660262,123.03,123.02,1.2433]
[1741616773473,18.79181043,123.02,122.93,49.92386463]
[1741616773640,49.92386463,122.97,122.91,49.92386463]
[1741616773846,49.92386463,122.95,122.9,0.063]
[1741616774071,18.79181043,123.02,122.92,49.92386463]
[1741616774241,49.92386463,123.01,122.91,18.79181043]
[1741616774437,49.92386463,122.97,122.9,0.063]
[1741616774670,49.92386463,122.96,122.9,49.98686463]
[1741616774852,49.92386463,122.97,122.92,49.92386463]
[1741616775176,49.92386463,123.0,122.9,28.5411]
[1741616775374,49.92386463,122.98,122.92,49.92386463]
[1741616775572,49.92386463,122.93,122.9,0.063]
[1741616775874,193.68216157,122.99,122.9,0.063]
[1741616775875,49.92386463,122.94,122.9,0.063]
[1741616776170,50.0660262,122.92,122.9,0.063]
[1741616776339,195.54,122.99,122.9,0.063]
[1741616776340,0.14216157,122.93,122.9,0.063]
[1741616776540,68.71567506,122.91,122.9,0.063]
[1741616776741,0.14216157,122.87,122.76,113.92386463]
[1741616776939,49.92386463,122.84,122.79,49.92386463]
[1741616777174,49.92386463,122.83,122.78,49.92386463]
[1741616777378,49.92386463,122.84,122.78,49.92386463]
[1741616777853,49.92386463,122.87,122.81,49.92386463]
[1741616778177,193.54,122.88,122.76,49.92386463]
[1741616778178,212.18964886,122.88,122.76,49.92386463]
[1741616778343,0.14216157,122.83,122.75,8.1466]
[1741616778544,8.1419,122.82,122.74,8.2098]
[1741616778746,20.3476,122.87,122.74,8.2098]
[1741616778948,8.1386,122.87,122.78,0.14216157]
[1741616779180,8.1386,122.87,122.75,18.933972]
[1741616779344,193.54,122.88,122.79,18.79181043]
[1741616779543,0.14216157,122.87,122.78,20.0]
[1741616779757,0.14216157,122.87,122.8,49.92386463]
[1741616779758,0.14216157,122.85,122.8,49.92386463]
[1741616779944,49.92386463,122.81,122.74,0.063]
[1741616780155,0.14216157,122.79,122.74,0.063]
[1741616780343,0.14216157,122.84,122.74,49.98686463]
[1741616780544,0.14216157,122.82,122.74,8.2102]
[1741616780751,8.1406,122.84,122.74,8.2102]
[1741616781048,58.06446463,122.84,122.79,49.92386463]
[1741616781249,58.06446463,122.84,122.77,20.0]
[1741616781442,0.14216157,122.83,122.75,18.64964886]
[1741616781652,58.06446463,122.84,122.75,18.64964886]
[1741616781967,50.0660262,122.79,122.74,49.98686463]
[1741616782146,20.0,122.81,122.74,0.063]
[1741616782346,0.14216157,122.8,122.74,49.98686463]
[1741616782651,20.0,122.75,122.74,0.063]
[1741616783063,49.92386463,122.76,122.74,0.063]
[1741616783261,49.92386463,122.75,122.74,0.063]
[1741616783467,49.92386463,122.76,122.74,0.063]
[1741616783751,8.1443,122.79,122.74,0.063]
[1741616783948,68.71567506,122.78,122.74,0.063]
[1741616784252,8.1443,122.79,122.74,0.063]
[1741616784654,28.5042,122.79,122.74,0.063]
[1741616784849,49.92386463,122.76,122.74,0.063]
[1741616785153,49.92386463,122.77,122.74,0.063]
[1741616785345,0.14216157,122.78,122.74,0.063]
[1741616785346,50.0660262,122.78,122.74,0.063]
[1741616785542,49.92386463,122.75,122.74,0.063]
[1741616785946,20.0,122.75,122.74,0.063]
[1741616786167,69.92386463,122.75,122.74,0.063]
[1741616786688,49.92386463,122.76,122.74,0.063]
[1741616786972,193.88,122.78,122.74,0.063]
[1741616787149,49.92386463,122.76,122.74,0.063]
[1741616787345,49.92386463,122.75,122.74,0.063]
[1741616787545,50.0660262,122.75,122.74,0.063]
[1741616787755,68.71567506,122.75,122.74,0.063]
[1741616788144,68.71567506,122.75,122.74,0.0001]
[1741616788359,20.0,122.72,122.64,50.23328922]
[1741616788551,49.92386463,122.68,122.64,0.30942459]
[1741616788752,49.92386463,122.66,122.64,0.30942459]
[1741616789165,0.14216157,122.7,122.64,0.30942459]
[1741616789350,8.1492,122.71,122.65,49.92386463]
[1741616789351,58.07306463,122.71,122.65,49.92386463]
[1741616789687,8.1466,122.75,122.68,49.92386463]
[1741616789850,58.07046463,122.75,122.69,49.92386463]
[1741616790054,193.88,122.78,122.72,49.92386463]
[1741616790381,243.80386463,122.78,122.69,18.64964886]
[1741616790562,49.92386463,122.76,122.7,20.0]
[1741616790760,50.0660262,122.75,122.66,64.0]
[1741616791072,0.14216157,122.76,122.66,49.92386463]
[1741616791277,18.64964886,122.75,122.66,49.92386463]
[1741616791479,18.79181043,122.77,122.68,69.92386463]
[1741616791667,49.92386463,122.71,122.66,49.92386463]
[1741616791877,49.92386463,122.7,122.65,49.92386463]
[1741616792070,49.92386463,122.7,122.64,20.30942459]
[1741616792260,49.92386463,122.72,122.67,49.92386463]
[1741616792582,49.92386463,122.71,122.66,49.92386463]
[1741616792768,28.5182,122.73,122.65,49.92386463]
[1741616792957,28.5182,122.73,122.64,50.23328922]
[1741616793160,49.92386463,122.7,122.64,8.46322459]
[1741616793354,49.92386463,122.67,122.64,0.30942459]
[1741616793552,18.64964886,122.72,122.64,0.30942459]
[1741616793751,28.5182,122.73,122.65,18.79181043]
[1741616793752,8.1483,122.73,122.65,18.79181043]
[1741616793952,50.0660262,122.72,122.64,28.84802459]
[1741616794287,20.0,122.73,122.65,18.64964886]
[1741616794460,49.92386463,122.71,122.65,49.92386463]
[1741616794779,49.92386463,122.69,122.66,0.063]
[1741616794984,49.92386463,122.67,122.66,0.063]
[1741616795275,49.92386463,122.69,122.66,0.063]
[1741616795482,49.92386463,122.68,122.66,0.063]
[1741616795674,0.14216157,122.68,122.66,0.063]
[1741616795852,50.0660262,122.68,122.66,0.063]
[1741616796049,8.1499,122.7,122.66,0.063]
[1741616796254,0.14216157,122.72,122.67,49.92386463]
[1741616796472,49.92386463,122.71,122.66,49.98686463]
[1741616796676,49.92386463,122.69,122.66,0.063]
[1741616796871,50.0660262,122.67,122.66,0.063]
[1741616797070,28.5247,122.7,122.66,0.063]
[1741616797259,0.14216157,122.69,122.66,0.063]
[1741616797566,49.92386463,122.67,122.66,0.063]
[1741616798087,0.14216157,122.69,122.66,0.063]
[1741616798378,69.92386463,122.69,122.66,0.063]
[1741616798774,193.88,122.78,122.64,1.73210271]
[1741616799107,49.92386463,122.7,122.65,49.92386463]
[1741616799257,0.14216157,122.71,122.64,1.73210271]
[1741616799662,0.14216157,122.72,122.64,1.73210271]
[1741616799859,0.14216157,122.74,122.68,49.92386463]
[1741616800063,50.0660262,122.72,122.67,49.92386463]
[1741616800356,49.92386463,122.69,122.64,21.73210271]
[1741616800561,49.92386463,122.7,122.64,71.65596734]
[1741616800767,49.92386463,122.69,122.64,1.73210271]
[1741616801175,49.92386463,122.67,122.64,1.73210271]
[1741616801685,8.15,122.7,122.64,1.73210271]
[1741616801857,58.07386463,122.7,122.64,1.73210271]
[1741616802182,58.07386463,122.7,122.65,49.92386463]
[1741616802387,49.92386463,122.73,122.67,49.92386463]
[1741616802683,49.92386463,122.69,122.64,21.73210271]
[1741616802873,49.92386463,122.71,122.65,49.92386463]
[1741616803186,49.92386463,122.73,122.67,49.92386463]
[1741616803375,68.71567506,122.74,122.68,49.92386463]
[1741616803688,18.64964886,122.74,122.64,1.73210271]
[1741616803991,49.92386463,122.7,122.64,21.73210271]
[1741616804284,49.92386463,122.68,122.64,1.73210271]
[1741616804486,49.92386463,122.69,122.64,1.73210271]
[1741616804697,0.14216157,122.7,122.64,51.65596734]
[1741616804698,8.1499,122.7,122.64,51.65596734]
[1741616805199,40.7331,122.75,122.64,51.65596734]
[1741616805200,8.1488,122.72,122.66,49.92386463]
[1741616805485,8.1488,122.72,122.64,9.88580271]
[1741616805486,49.92386463,122.7,122.65,49.92386463]
[1741616805788,49.92386463,122.67,122.64,1.73210271]
[1741616805990,0.14216157,122.68,122.64,1.73210271]
[1741616806159,49.92386463,122.66,122.64,1.73210271]
[1741616806489,18.64964886,122.69,122.64,1.73210271]
[1741616806490,68.71567506,122.65,122.64,1.73210271]
[1741616806658,0.14216157,122.64,122.61,0.063]
[1741616806866,8.1546,122.63,122.61,0.063]
[1741616807098,58.07846463,122.63,122.61,0.063]
[1741616807565,8.1526,122.66,122.61,0.063]
[1741616807769,49.92386463,122.65,122.61,0.063]
[1741616808072,244.14386463,122.67,122.62,49.92386463]
[1741616808269,40.7348,122.75,122.66,49.92386463]
[1741616808270,49.92386463,122.72,122.66,49.92386463]
[1741616808495,49.92386463,122.72,122.67,49.92386463]
[1741616808788,8.1492,122.71,122.66,49.92386463]
[1741616809168,8.1466,122.75,122.7,49.92386463]
[1741616809360,58.07046463,122.75,122.69,49.92386463]
[1741616809564,8.1466,122.75,122.65,13.9541]
[1741616809887,0.14216157,122.74,122.65,32.60374886]
[1741616810100,0.14216157,122.74,122.67,49.92386463]
[1741616810265,50.0660262,122.74,122.65,32.60374886]
[1741616810469,49.92386463,122.72,122.66,49.92386463]
[1741616810796,20.3665,122.75,122.68,49.92386463]
[1741616810975,49.92386463,122.72,122.66,49.92386463]
[1741616811177,8.28946157,122.74,122.65,13.9541]
[1741616811484,49.92386463,122.73,122.68,49.92386463]
[1741616811688,49.92386463,122.73,122.65,13.9541]
[1741616811689,8.1473,122.74,122.69,49.92386463]
[1741616811903,8.1459,122.76,122.71,49.92386463]
[1741616812203,78.43466463,122.76,122.7,49.92386463]
[1741616812496,194.24,122.83,122.66,82.64964886]
[1741616812701,8.1419,122.82,122.78,49.92386463]
[1741616812879,202.3814,122.83,122.8,49.92386463]
[1741616813076,194.24,122.83,122.8,49.92386463]
[1741616813592,194.24,122.83,122.77,18.64964886]
[1741616813765,252.30546463,122.83,122.74,18.64964886]
[1741616814110,49.92386463,122.79,122.73,49.92386463]
[1741616814292,49.92386463,122.77,122.69,18.64964886]
[1741616814666,49.92386463,122.77,122.7,20.0]
[1741616814872,58.06846463,122.78,122.72,49.92386463]
[1741616815066,49.92386463,122.8,122.75,49.92386463]
[1741616815269,8.28406157,122.82,122.76,49.92386463]
[1741616815483,8.28406157,122.82,122.71,18.79181043]
[1741616815484,202.3815,122.83,122.78,49.92386463]
[1741616815663,2.03,122.91,122.74,18.64964886]
[1741616815664,0.17216157,122.87,122.81,49.92386463]
[1741616815876,0.17216157,122.87,122.77,18.64964886]
[1741616815877,8.1393,122.86,122.82,49.92386463]
[1741616816071,8.1393,122.86,122.77,18.64964886]
[1741616816072,8.1688,122.87,122.83,49.92386463]
[1741616816273,0.03,122.87,122.83,49.92386463]
[1741616816476,0.03,122.87,122.86,49.92386463]
[1741616816798,0.03,122.87,122.86,58.06316463]
[1741616816970,0.03,122.91,122.89,20.0]
[1741616817171,0.03,122.91,122.9,49.92386463]
[1741616817479,0.03,122.91,122.9,68.71567506]
[1741616817678,0.03,122.91,122.9,49.92386463]
[1741616818292,8.1308,122.99,122.91,18.79181043]
[1741616818494,8.1308,122.99,122.94,49.92386463]
[1741616818668,8.1308,122.99,122.91,49.92386463]
[1741616818669,58.05656463,122.96,122.91,49.92386463]
[1741616818874,49.92386463,122.95,122.92,38.2204823]
[1741616819176,8.1327,122.96,122.92,38.2204823]
[1741616819381,49.92386463,122.95,122.92,38.2204823]
[1741616819585,49.92386463,122.93,122.92,38.2204823]
[1741616819997,194.08,123.03,122.92,24.824001]
[1741616820182,0.03,123.04,122.96,20.0]
[1741616820485,0.03,123.04,122.98,0.14216157]
[1741616820704,0.03,123.04,123.0,0.14216157]
[1741616820884,0.03,123.04,123.03,49.92386463]
[1741616821220,0.03,123.04,122.96,134.9]
[1741616821387,0.03,123.04,123.03,49.92386463]
[1741616821610,8.1214,123.13,123.03,203.47351349]
[1741616821894,8.1214,123.13,123.03,20.0]
[1741616822081,50.0660262,123.08,123.02,49.92386463]
[1741616822279,49.92386463,123.07,123.0,20.0]
[1741616822626,49.92386463,123.03,122.95,134.9]
[1741616822797,8.1287,123.02,122.94,6.0141]
[1741616823104,0.14216157,123.01,122.91,134.9]
[1741616823308,20.0,122.99,122.88,143.038]
[1741616823513,0.14216157,122.96,122.87,18.4818]
[1741616823673,49.92386463,122.94,122.88,49.92386463]
[1741616823879,18.64964886,122.97,122.88,18.64964886]
[1741616823880,17.58,122.97,122.88,18.64964886]
[1741616824078,49.92386463,122.94,122.87,6.0084]
[1741616824311,49.92386463,122.93,122.88,49.92386463]
[1741616824513,49.92386463,122.92,122.86,49.92386463]
[1741616824673,49.92386463,122.9,122.84,49.92386463]
[1741616824879,49.92386463,122.93,122.85,0.14216157]
[1741616825108,58.05736463,122.95,122.89,49.92386463]
[1741616825329,8.1335,122.95,122.89,49.92386463]
[1741616825505,49.92386463,122.93,122.85,0.14216157]
[1741616825703,8.1294,123.01,122.92,20.0]
[1741616826015,58.04996463,123.06,122.97,0.14216157]
[1741616826327,17.52,123.12,123.0,20.0]
[1741616826328,8.1253,123.08,123.0,20.0]
[1741616826489,49.92386463,123.05,122.99,184.82386463]
[1741616826692,49.92386463,123.01,122.96,18.79181043]
[1741616826904,0.14216157,123.06,122.99,49.92386463]
[1741616827219,0.14216157,123.06,122.93,7.8313]
[1741616827220,49.92386463,123.0,122.93,5.8313]
[1741616827423,20.0,123.0,122.92,49.92386463]
[1741616827597,49.92386463,122.96,122.91,49.92386463]
[1741616827796,69.92386463,123.0,122.91,49.92386463]
[1741616828002,0.14216157,122.95,122.87,6.3605]
[1741616828221,20.0,122.96,122.88,0.14216157]
[1741616828521,20.0,122.99,122.92,49.92386463]
[1741616828696,49.92386463,122.95,122.88,153.69181043]
[1741616828900,49.92386463,122.96,122.9,50.0660262]
[1741616829221,49.92386463,122.95,122.9,49.92386463]
[1741616829412,49.92386463,122.96,122.9,68.71567506]
[1741616829723,17.5,122.99,122.91,49.92386463]
[1741616829927,49.92386463,122.98,122.92,49.92386463]
[1741616830225,0.14216157,123.03,122.95,49.92386463]
[1741616830391,49.92386463,123.02,122.9,134.9]
[1741616830591,49.92386463,123.0,122.94,18.79181043]
[1741616830905,20.0,122.99,122.91,49.92386463]
[1741616831210,8.1287,123.02,122.95,49.92386463]
[1741616831512,193.86,123.04,122.95,49.92386463]
[1741616831513,49.92386463,123.01,122.95,49.92386463]
[1741616831817,49.92386463,123.02,122.96,49.92386463]
[1741616831996,49.92386463,123.0,122.94,68.57351349]
[1741616832203,49.92386463,123.0,122.94,69.92386463]
[1741616832414,8.1282,123.03,122.94,49.92386463]
[1741616832610,49.92386463,122.97,122.89,26.92911043]
[1741616832818,0.14216157,123.01,122.93,49.92386463]
[1741616833004,49.92386463,123.0,122.91,18.79181043]
[1741616833206,49.92386463,123.0,122.95,49.92386463]
[1741616833393,49.92386463,122.98,122.92,49.92386463]
[1741616833592,49.92386463,122.96,122.9,49.98686463]
[1741616833912,0.14216157,123.01,122.94,49.92386463]
[1741616834085,20.0,122.99,122.9,134.963]
[1741616834286,20.0,122.97,122.9,0.063]
[1741616834496,49.92386463,122.94,122.9,0.063]
[1741616834693,20.0,122.97,122.9,0.063]
[1741616834694,49.92386463,122.91,122.9,0.063]
[1741616834890,58.05986463,122.91,122.9,0.063]
[1741616835105,8.1347,122.93,122.9,0.063]
[1741616835415,50.0660262,122.91,122.9,0.063]
[1741616835616,68.71567506,122.91,122.9,0.063]
[1741616836116,50.0660262,122.91,122.9,0.063]
[1741616836411,49.92386463,122.91,122.9,0.063]
[1741616836632,50.0660262,122.91,122.9,0.063]
[1741616836915,58.2020262,122.91,122.9,0.063]
[1741616837212,58.05986463,122.91,122.9,0.063]
[1741616837412,58.2020262,122.91,122.9,0.063]
[1741616837614,58.2020262,122.91,122.81,14.2745]
[1741616837615,0.14216157,122.89,122.81,14.2745]
[1741616837912,49.92386463,122.88,122.82,49.92386463]
[1741616838116,49.92386463,122.87,122.81,64.19836463]
[1741616838711,49.92386463,122.82,122.77,0.063]
[1741616838896,49.92386463,122.79,122.77,0.063]
[1741616839209,49.92386463,122.82,122.77,49.98686463]
[1741616839412,49.92386463,122.85,122.79,49.92386463]
[1741616839606,49.92386463,122.82,122.77,49.98686463]
[1741616839821,49.92386463,122.84,122.79,49.92386463]
[1741616840024,49.92386463,122.83,122.77,0.063]
[1741616840230,49.92386463,122.83,122.77,49.98686463]
[1741616840527,49.92386463,122.82,122.77,49.98686463]
[1741616840725,8.1398,122.86,122.77,18.71264886]
[1741616841024,49.92386463,122.85,122.79,49.92386463]
[1741616841232,49.92386463,122.86,122.8,49.92386463]
[1741616841530,58.2047262,122.87,122.81,49.92386463]
[1741616841708,49.92386463,122.88,122.83,49.92386463]
[1741616841902,0.14216157,122.9,122.85,49.92386463]
[1741616842095,49.92386463,122.89,122.84,49.92386463]
[1741616842295,64.14334886,122.92,122.83,49.92386463]
[1741616842599,8.1353,122.92,122.86,49.92386463]
[1741616842811,49.92386463,122.89,122.82,134.9]
[1741616843011,49.92386463,122.91,122.86,49.92386463]
[1741616843417,12.2485,122.99,122.9,49.92386463]
[1741616843608,8.13,123.0,122.95,49.92386463]
[1741616843795,193.9,123.01,122.91,0.14216157]
[1741616843796,49.92386463,123.01,122.96,49.92386463]
[1741616844001,8.128,123.03,122.98,49.92386463]
[1741616844201,49.92386463,123.01,122.94,134.9]
[1741616844508,20.3164,123.06,122.98,49.92386463]
[1741616844719,20.3164,123.06,122.97,49.92386463]
[1741616844914,49.92386463,123.02,122.97,49.92386463]
[1741616845102,49.92386463,123.03,122.97,49.92386463]
[1741616845301,49.92386463,123.02,122.97,49.92386463]
[1741616845599,49.92386463,123.03,122.95,8.1333]
[1741616845797,50.0660262,123.0,122.95,49.92386463]
[1741616846031,49.92386463,122.97,122.9,20.3541]
[1741616846215,18.79181043,123.01,122.9,8.1366]
[1741616846524,28.4436,123.05,122.94,20.0]
[1741616846736,0.14216157,123.04,122.97,20.0]
[1741616846906,0.03,123.02,123.0,49.92386463]
[1741616847433,0.03,123.02,123.01,49.92386463]
[1741616848430,0.03,123.02,123.01,203.61567506]
[1741616848611,8.1232,123.11,123.06,49.92386463]
[1741616848807,49.92386463,123.08,123.02,49.92386463]
[1741616849020,50.0660262,123.12,123.02,49.92386463]
[1741616849021,49.92386463,123.07,123.02,49.92386463]
[1741616849207,49.92386463,123.08,123.02,49.92386463]
[1741616849408,8.1228,123.11,123.05,49.92386463]
[1741616849609,49.92386463,123.1,123.05,49.92386463]
[1741616849906,0.14216157,123.1,123.04,49.92386463]
[1741616850107,0.14216157,123.1,123.01,0.14216157]
[1741616850108,58.04596463,123.12,123.06,49.92386463]
[1741616850326,49.92386463,123.1,123.04,49.92386463]
[1741616850531,0.14216157,123.1,123.02,49.92386463]
[1741616851134,95.07126463,123.12,122.99,49.92386463]
[1741616851135,0.14216157,123.07,122.99,49.92386463]
[1741616851449,49.92386463,123.03,122.97,49.92386463]
[1741616851653,20.0,123.03,122.95,55.96666463]
[1741616851830,20.0,123.03,122.95,49.92386463]
[1741616851831,16.68,123.03,122.95,49.92386463]
[1741616852008,66.60386463,123.03,122.98,49.92386463]
[1741616852328,66.60386463,123.03,122.99,49.92386463]
[1741616852329,16.68,123.03,122.99,49.92386463]
[1741616852527,66.60386463,123.03,122.97,49.92386463]
[1741616852730,49.92386463,123.01,122.95,49.92386463]